[Event "XXVII RUS-chT Premier 2020"]
[Site "Sochi"]
[Date "2020.11.19"]
[Round "1.3"]
[White "Paravyan, David"]
[Black "Fedoseev, Vladimir"]
[Result "0-1"]
[ECO "E06"]
[WhiteElo "2654"]
[BlackElo "2676"]
[Annotator "ChessBase"]
[PlyCount "74"]
[EventDate "2020.11.19"]
[EventType "team-tourn"]
[EventCountry "RUS"]
[SourceTitle "playchess.com"]
[Source "ChessBase"]
[SourceQuality "1"]
[TimeControl "40/5400+30:1800+30"]

1. d4 {[%emt 0:00:00]} d5 {[%emt 0:00:56]} 2. c4 {[%emt 0:00:00]} e6 {[%emt 0:00:53]} 3. Nf3 {[%emt 0:00:00]} Nf6 {[%emt 0:00:06]} 4. g3 {[%emt 0:00:01]} Be7 {[%emt 0:01:46]} 5. Bg2 {[%emt 0:00:10]} O-O {[%emt 0:00:11]} 6. O-O {[%emt 0:00:11]} dxc4 {[%emt 0:00:53]} 7. Qc2 {[%emt 0:00:10]} a6 {[%emt 0:00:08]} 8. a4 {[%emt 0:00:06]} Bd7 {[%emt 0:02:54]} 9. Qxc4 {[%emt 0:00:14]} Bc6 {[%emt 0:00:08]} 10. Bg5 {[%emt 0:00:13]} Bd5 {[%emt 0:04:12]} 11. Qc2 {[%emt 0:01:01]} Be4 {[%emt 0:00:35]} 12. Qc1 {[%emt 0:00:08]} h6 {[%emt 0:01:47]} 13. Bxf6 {[%emt 0:02:15]} Bxf6 {[%emt 0:00:50]} 14. Nc3 {[%emt 0:02:22]} Bh7 {[%emt 0:06:16]} 15. Rd1 {[%emt 0:20:42]} a5 {[%emt 0:04:37]} 16. e4 {[%emt 0:05:51]} c6 {[%emt 0:01:31]} 17. h4 {[%emt 0:09:58]} Na6 {[%emt 0:00:39]} 18. Qe3 {[%emt 0:07:39]} Be7 19. Bf1 Nb4 {[%emt 0:18:01]} 20. Rd2 {[%emt 0:00:36]} Qc7 {[%emt 0:01:38]} 21. Bc4 {[%emt 0:08:50]} Kh8 {[%emt 0:00:46]} 22. b3 {[%emt 0:07:14]} Rae8 {[%emt 0:01:18]} 23. Re1 {[%emt 0:00:46]} Bd8 {[%emt 0:05:23]} 24. Kg2 {[%emt 0:01:53]} f6 {[%emt 0:01:49]} 25. Rde2 {[%emt 0:05:56]} Qd7 {[%emt 0:03:02]} 26. Qd2 {[%emt 0:10:06]} Bb6 {[%emt 0:01:13]} 27. d5 {[%emt 0:06:09]} Rd8 {[%emt 0:01:17]} 28. h5 {[%emt 0:05:22]} exd5 {[%emt 0:03:01]} 29. exd5 {[%emt 0:00:04]} cxd5 {[%emt 0:00:08]} 30. Re7 {[%emt 0:03:08]} Qc8 {[%emt 0:03:19]} 31. Bb5 {[%emt 0:03:04]} Bc5 {[%emt 0:01:22]} 32. R7e2 {[%emt 0:01:19]} d4 {[%emt 0:00:12]} 33. Na2 {[%emt 0:00:30]} d3 {[%emt 0:00:12]} 34. Re6 {[%emt 0:00:11]} Nxa2 {[%emt 0:00:41]} 35. Qxa2 {[%emt 0:00:16]} Bb4 {[%emt 0:00:07]} 36. Bc4 {[%emt 0:00:21]} Bxe1 {[%emt 0:00:07]} 37. Rxe1 {[%emt 0:00:03]} Rfe8 {[%emt 0:00:09]} 0-1

[Event "XXVII RUS-chT Premier 2020"]
[Site "Sochi"]
[Date "2020.11.19"]
[Round "1.4"]
[White "Sakaev, Konstantin"]
[Black "Chigaev, Maksim"]
[Result "1/2-1/2"]
[ECO "E94"]
[WhiteElo "2612"]
[BlackElo "2615"]
[Annotator "ChessBase"]
[PlyCount "81"]
[EventDate "2020.11.19"]
[EventType "team-tourn"]
[EventCountry "RUS"]
[SourceTitle "playchess.com"]
[Source "ChessBase"]
[SourceQuality "1"]
[TimeControl "40/5400+30:1800+30"]

1. Nf3 {[%emt 0:00:00]} Nf6 {[%emt 0:00:00]} 2. c4 {[%emt 0:00:00]} g6 {[%emt 0:00:00]} 3. Nc3 {[%emt 0:00:00]} Bg7 {[%emt 0:00:00]} 4. e4 {[%emt 0:00:19]} d6 {[%emt 0:00:02]} 5. d4 {[%emt 0:00:11]} O-O {[%emt 0:00:07]} 6. Be2 {[%emt 0:00:07]} e5 {[%emt 0:00:05]} 7. O-O {[%emt 0:00:10]} exd4 {[%emt 0:00:10]} 8. Nxd4 {[%emt 0:00:12]} Re8 {[%emt 0:00:06]} 9. f3 {[%emt 0:00:18]} c6 {[%emt 0:00:06]} 10. Kh1 {[%emt 0:01:07]} d5 {[%emt 0:00:35]} 11. cxd5 {[%emt 0:05:08]} cxd5 {[%emt 0:00:07]} 12. Bg5 {[%emt 0:00:44]} Nc6 {[%emt 0:00:10]} 13. Bb5 {[%emt 0:05:21]} h6 {[%emt 0:00:09]} 14. Bxf6 {[%emt 0:23:09]} Qxf6 {[%emt 0:00:10]} 15. exd5 {[%emt 0:01:39]} Qxd4 {[%emt 0:00:09]} 16. dxc6 {[%emt 0:08:27]} Rf8 {[%emt 0:00:12]} 17. Qxd4 {[%emt 0:01:57]} Bxd4 {[%emt 0:00:08]} 18. Rad1 {[%emt 0:05:13]} Bxc3 {[%emt 0:00:36]} 19. bxc3 {[%emt 0:01:30]} bxc6 {[%emt 0:00:11]} 20. Bxc6 {[%emt 0:00:10]} Rb8 {[%emt 0:00:09]} 21. Bd5 {[%emt 0:06:08]} Ba6 {[%emt 0:00:27]} 22. Rfe1 {[%emt 0:06:55]} Rfc8 {[%emt 0:01:32]} 23. h3 {[%emt 0:12:42]} Bc4 {[%emt 0:02:59]} 24. Bxc4 {[%emt 0:01:20]} Rxc4 {[%emt 0:00:09]} 25. Re3 {[%emt 0:00:17]} Rb2 {[%emt 0:02:22]} 26. Rd4 {[%emt 0:11:36]} Rxd4 {[%emt 0:01:16]} 27. cxd4 {[%emt 0:00:04]} Rxa2 {[%emt 0:00:08]} 28. d5 {[%emt 0:00:05]} Rd2 {[%emt 0:00:08]} 29. Ra3 {[%emt 0:00:05]} Rxd5 {[%emt 0:00:06]} 30. Rxa7 {[%emt 0:00:04]} h5 {[%emt 0:00:10]} 31. Kg1 {[%emt 0:00:07]} Kg7 {[%emt 0:00:09]} 32. Ra4 {[%emt 0:00:07]} Rb5 {[%emt 0:00:06]} 33. h4 {[%emt 0:00:06]} Rc5 {[%emt 0:00:06]} 34. Kf2 {[%emt 0:00:04]} Rc2+ {[%emt 0:00:09]} 35. Kg3 {[%emt 0:00:04]} Rb2 {[%emt 0:00:07]} 36. Rc4 {[%emt 0:00:04]} Ra2 {[%emt 0:00:07]} 37. Rb4 {[%emt 0:00:03]} Rd2 {[%emt 0:00:08]} 38. Ra4 {[%emt 0:00:04]} Rc2 {[%emt 0:00:06]} 39. Rb4 {[%emt 0:00:04]} Ra2 {[%emt 0:00:05]} 40. Rc4 {[%emt 0:00:00]} Rb2 {[%emt 0:00:00]} 41. Ra4 {[%emt 0:00:07]} 1/2-1/2

[Event "XXVII RUS-chT Premier 2020"]
[Site "Sochi"]
[Date "2020.11.19"]
[Round "1.5"]
[White "Antipov, Mikhail Al."]
[Black "Ponkratov, Pavel"]
[Result "1-0"]
[ECO "C55"]
[WhiteElo "2607"]
[BlackElo "2625"]
[Annotator "ChessBase"]
[PlyCount "111"]
[EventDate "2020.11.19"]
[EventType "team-tourn"]
[EventCountry "RUS"]
[SourceTitle "playchess.com"]
[Source "ChessBase"]
[SourceQuality "1"]
[TimeControl "40/5400+30:1800+30"]

1. e4 {[%emt 0:00:00]} e5 {[%emt 0:00:00]} 2. Nf3 {[%emt 0:00:00]} Nc6 {[%emt 0:00:00]} 3. Bc4 {[%emt 0:00:00]} Nf6 {[%emt 0:00:00]} 4. d3 {[%emt 0:00:00]} h6 {[%emt 0:00:00]} 5. h3 {[%emt 0:06:36]} d6 {[%emt 0:03:11]} 6. a4 {[%emt 0:01:00]} g6 {[%emt 0:00:09]} 7. Nc3 {[%emt 0:09:59]} Bg7 {[%emt 0:00:18]} 8. Be3 {[%emt 0:00:10]} Nb4 {[%emt 0:05:10]} 9. Qd2 {[%emt 0:20:38]} c5 {[%emt 0:14:26]} 10. g4 {[%emt 0:05:55]} b6 {[%emt 0:17:45]} 11. g5 {[%emt 0:11:54]} hxg5 {[%emt 0:17:40]} 12. Nxg5 {[%emt 0:00:12]} O-O {[%emt 0:16:45]} 13. h4 {[%emt 0:12:38]} Nh5 {[%emt 0:03:08]} 14. Rg1 {[%emt 0:18:32]} Bb7 {[%emt 0:11:42]} 15. Nxf7 {[%emt 0:00:22]} Rxf7 {[%emt 0:00:05]} 16. Rxg6 {[%emt 0:00:05]} d5 {[%emt 0:00:07]} 17. exd5 {[%emt 0:00:06]} Nxd5 {[%emt 0:00:10]} 18. O-O-O {[%emt 0:00:56]} Kh7 {[%emt 0:03:45]} 19. Rdg1 {[%emt 0:00:38]} Qd7 {[%emt 0:03:28]} 20. Qd1 {[%emt 0:05:24]} Ndf6 {[%emt 0:01:01]} 21. R6g5 {[%emt 0:00:40]} Bh6 {[%emt 0:00:38]} 22. Rxh5 {[%emt 0:01:37]} Nxh5 {[%emt 0:00:04]} 23. Qxh5 {[%emt 0:00:06]} Rf6 {[%emt 0:00:03]} 24. Nd5 {[%emt 0:03:58]} Bxd5 {[%emt 0:00:48]} 25. Bxd5 {[%emt 0:00:03]} Qxd5 {[%emt 0:00:35]} 26. Bxh6 {[%emt 0:00:06]} Qf3 {[%emt 0:00:11]} 27. Rg7+ {[%emt 0:01:16]} Kh8 {[%emt 0:00:05]} 28. Rg4 {[%emt 0:00:34]} Qxg4 {[%emt 0:02:00]} 29. Qxg4 {[%emt 0:00:06]} Rxh6 {[%emt 0:00:03]} 30. Qg5 {[%emt 0:00:26]} Re6 {[%emt 0:00:09]} 31. Qh5+ {[%emt 0:00:05]} Kg7 {[%emt 0:00:04]} 32. Qg4+ {[%emt 0:00:10]} Rg6 {[%emt 0:00:04]} 33. Qd7+ {[%emt 0:00:05]} Kh6 {[%emt 0:00:08]} 34. Qe7 {[%emt 0:01:31]} a5 {[%emt 0:00:34]} 35. Kd2 {[%emt 0:00:47]} Rag8 {[%emt 0:00:29]} 36. Qxe5 {[%emt 0:00:35]} Rf8 {[%emt 0:00:07]} 37. f4 {[%emt 0:00:21]} Rg2+ {[%emt 0:00:41]} 38. Kc3 {[%emt 0:00:36]} Rg6 {[%emt 0:00:05]} 39. Kd2 {[%emt 0:00:33]} Rg2+ {[%emt 0:00:06]} 40. Ke3 {[%emt 0:00:00]} Rfg8 {[%emt 0:00:00]} 41. f5 {[%emt 0:04:27]} R8g3+ {[%emt 0:00:25]} 42. Kf4 {[%emt 0:00:06]} Rg8 {[%emt 0:00:41]} 43. Kf3 {[%emt 0:00:33]} Rg1 {[%emt 0:00:39]} 44. f6 {[%emt 0:04:57]} Rf1+ {[%emt 0:00:06]} 45. Ke2 {[%emt 0:00:04]} Rgg1 {[%emt 0:00:05]} 46. Qb8 {[%emt 0:00:37]} Re1+ {[%emt 0:01:36]} 47. Kd2 {[%emt 0:00:05]} Kg6 {[%emt 0:00:03]} 48. Qf8 {[%emt 0:00:30]} Ref1 {[%emt 0:00:29]} 49. Qg7+ {[%emt 0:00:29]} Kh5 {[%emt 0:00:10]} 50. Qh7+ {[%emt 0:00:48]} Kg4 {[%emt 0:00:06]} 51. h5 {[%emt 0:01:49]} Rf2+ {[%emt 0:02:29]} 52. Kc3 {[%emt 0:00:05]} Rc1 {[%emt 0:00:05]} 53. Kb3 {[%emt 0:03:33]} Rxf6 {[%emt 0:01:00]} 54. h6 {[%emt 0:03:28]} Kh5 {[%emt 0:00:22]} 55. Qe4 {[%emt 0:00:34]} Rxh6 {[%emt 0:01:25]} 56. Qf5+ {[%emt 0:00:06]} 1-0

[Event "XXVII RUS-chT Premier 2020"]
[Site "Sochi"]
[Date "2020.11.19"]
[Round "1.6"]
[White "Goganov, Aleksey"]
[Black "Yuffa, Daniil"]
[Result "1/2-1/2"]
[ECO "E10"]
[WhiteElo "2602"]
[BlackElo "2565"]
[Annotator "ChessBase"]
[PlyCount "111"]
[EventDate "2020.11.19"]
[EventType "team-tourn"]
[EventCountry "RUS"]
[SourceTitle "playchess.com"]
[Source "ChessBase"]
[SourceQuality "1"]
[TimeControl "40/5400+30:1800+30"]

1. d4 {[%emt 0:00:00]} Nf6 {[%emt 0:00:12]} 2. c4 {[%emt 0:00:00]} e6 {[%emt 0:00:04]} 3. Nf3 {[%emt 0:00:00]} d5 {[%emt 0:00:06]} 4. g3 {[%emt 0:01:23]} Bb4+ {[%emt 0:00:40]} 5. Bd2 {[%emt 0:00:06]} a5 {[%emt 0:00:26]} 6. Bg2 {[%emt 0:06:20]} O-O {[%emt 0:00:49]} 7. Qc2 {[%emt 0:01:53]} c5 {[%emt 0:00:29]} 8. cxd5 {[%emt 0:03:12]} cxd4 {[%emt 0:00:33]} 9. Nxd4 {[%emt 0:02:13]} Qb6 {[%emt 0:01:05]} 10. e3 {[%emt 0:04:17]} exd5 {[%emt 0:00:23]} 11. O-O {[%emt 0:00:20]} Nc6 {[%emt 0:00:22]} 12. Bc3 {[%emt 0:08:24]} Bxc3 {[%emt 0:09:14]} 13. Qxc3 {[%emt 0:03:03]} h5 {[%emt 0:09:50]} 14. Qb3 {[%emt 0:13:17]} Ra6 {[%emt 0:06:07]} 15. Nxc6 {[%emt 0:01:18]} bxc6 {[%emt 0:00:41]} 16. Qxb6 {[%emt 0:00:56]} Rxb6 {[%emt 0:00:04]} 17. b3 {[%emt 0:00:03]} c5 {[%emt 0:13:07]} 18. Nc3 {[%emt 0:03:44]} Be6 {[%emt 0:08:09]} 19. Rfd1 {[%emt 0:00:11]} Rd8 {[%emt 0:00:44]} 20. Rac1 {[%emt 0:00:32]} Rbb8 {[%emt 0:00:41]} 21. Ne2 {[%emt 0:13:24]} Rbc8 {[%emt 0:06:22]} 22. Rd2 {[%emt 0:03:24]} Rc7 {[%emt 0:06:25]} 23. h4 {[%emt 0:04:17]} g6 {[%emt 0:05:50]} 24. e4 {[%emt 0:03:34]} Rdd7 {[%emt 0:03:49]} 25. e5 {[%emt 0:07:42]} Ng4 {[%emt 0:07:04]} 26. Nf4 {[%emt 0:00:24]} d4 {[%emt 0:00:33]} 27. Re1 {[%emt 0:07:01]} a4 {[%emt 0:00:30]} 28. Nxe6 {[%emt 0:02:08]} fxe6 {[%emt 0:00:04]} 29. Bh3 {[%emt 0:00:10]} axb3 {[%emt 0:03:24]} 30. axb3 {[%emt 0:00:04]} Rd5 {[%emt 0:02:16]} 31. Bxg4 {[%emt 0:00:39]} hxg4 {[%emt 0:00:04]} 32. Re4 {[%emt 0:00:30]} Kh7 {[%emt 0:00:53]} 33. Kg2 {[%emt 0:00:20]} Rb7 {[%emt 0:00:32]} 34. Rd3 {[%emt 0:00:05]} Kh6 {[%emt 0:03:07]} 35. Rxg4 {[%emt 0:01:21]} Rxe5 {[%emt 0:00:09]} 36. Kf1 {[%emt 0:01:36]} Kg7 {[%emt 0:03:54]} 37. f4 {[%emt 0:02:11]} Rf5 {[%emt 0:00:59]} 38. Kg2 {[%emt 0:01:20]} Ra7 {[%emt 0:02:54]} 39. Rg5 {[%emt 0:02:03]} Kf6 {[%emt 0:03:03]} 40. b4 {[%emt 0:00:00]} e5 {[%emt 0:00:00]} 41. bxc5 {[%emt 0:12:56]} Rxg5 {[%emt 0:04:01]} 42. hxg5+ {[%emt 0:00:08]} Kf5 {[%emt 0:01:09]} 43. fxe5 {[%emt 0:05:02]} Ke4 {[%emt 0:00:24]} 44. Rd1 {[%emt 0:08:30]} Ra2+ {[%emt 0:09:13]} 45. Kf1 {[%emt 0:00:05]} Kxe5 {[%emt 0:02:35]} 46. Re1+ {[%emt 0:00:12]} Kd5 {[%emt 0:03:13]} 47. Re8 {[%emt 0:00:21]} Ra6 {[%emt 0:01:06]} 48. Ke2 {[%emt 0:04:30]} Kxc5 {[%emt 0:00:14]} 49. Rg8 {[%emt 0:02:14]} Kc4 {[%emt 0:02:10]} 50. Rg7 {[%emt 0:01:38]} Kd5 {[%emt 0:01:18]} 51. Kd3 {[%emt 0:00:08]} Ra3+ {[%emt 0:00:12]} 52. Kd2 {[%emt 0:00:08]} Ke4 {[%emt 0:00:28]} 53. Rxg6 {[%emt 0:00:04]} Ra2+ {[%emt 0:00:27]} 54. Ke1 {[%emt 0:03:00]} Kd3 {[%emt 0:00:11]} 55. Rd6 {[%emt 0:00:09]} Rg2 {[%emt 0:02:06]} 56. g6 {[%emt 0:00:04]} 1/2-1/2

[Event "XXVII RUS-chT Premier 2020"]
[Site "Sochi"]
[Date "2020.11.19"]
[Round "1.7"]
[White "Iljiushenok, Ilia"]
[Black "Demchenko, Anton"]
[Result "1/2-1/2"]
[ECO "D30"]
[WhiteElo "2539"]
[BlackElo "2626"]
[Annotator "ChessBase"]
[PlyCount "83"]
[EventDate "2020.11.19"]
[EventType "team-tourn"]
[EventCountry "RUS"]
[SourceTitle "playchess.com"]
[Source "ChessBase"]
[SourceQuality "1"]
[TimeControl "40/5400+30:1800+30"]

1. d4 {[%emt 0:00:00]} d5 {[%emt 0:01:11]} 2. c4 {[%emt 0:00:07]} e6 {[%emt 0:00:29]} 3. Nf3 {[%emt 0:00:45]} Nf6 {[%emt 0:00:13]} 4. e3 {[%emt 0:06:09]} Be7 {[%emt 0:12:11]} 5. Nc3 {[%emt 0:01:55]} O-O {[%emt 0:00:31]} 6. a3 {[%emt 0:01:38]} Nbd7 {[%emt 0:04:20]} 7. cxd5 {[%emt 0:19:54]} exd5 {[%emt 0:00:25]} 8. Bd3 {[%emt 0:00:18]} c6 {[%emt 0:01:41]} 9. O-O {[%emt 0:01:07]} Bd6 {[%emt 0:05:45]} 10. b4 {[%emt 0:05:00]} a6 {[%emt 0:01:19]} 11. Qc2 {[%emt 0:04:51]} Re8 {[%emt 0:01:12]} 12. Bb2 {[%emt 0:06:43]} Qe7 {[%emt 0:05:13]} 13. Na4 {[%emt 0:07:12]} Ne4 {[%emt 0:06:55]} 14. Rfe1 {[%emt 0:06:46]} Bc7 {[%emt 0:18:00]} 15. Rac1 {[%emt 0:02:34]} h6 {[%emt 0:06:10]} 16. Ba1 {[%emt 0:12:10]} Nf8 {[%emt 0:09:43]} 17. Nc3 {[%emt 0:12:05]} Bd6 {[%emt 0:06:07]} 18. Ne5 {[%emt 0:01:43]} Nxc3 {[%emt 0:02:00]} 19. Bxc3 {[%emt 0:00:09]} Be6 {[%emt 0:00:05]} 20. f4 {[%emt 0:03:25]} f6 {[%emt 0:00:57]} 21. Nf3 {[%emt 0:00:42]} a5 {[%emt 0:05:58]} 22. bxa5 {[%emt 0:00:37]} Bxa3 {[%emt 0:00:08]} 23. Rb1 {[%emt 0:00:04]} Bd6 {[%emt 0:00:28]} 24. Rb6 {[%emt 0:03:12]} Ra7 {[%emt 0:01:32]} 25. Qb1 {[%emt 0:00:47]} Rb8 {[%emt 0:04:38]} 26. e4 {[%emt 0:00:36]} dxe4 {[%emt 0:00:23]} 27. Bxe4 {[%emt 0:00:04]} Qd8 {[%emt 0:00:53]} 28. f5 {[%emt 0:01:37]} Bf7 {[%emt 0:02:07]} 29. a6 {[%emt 0:00:41]} Rxa6 {[%emt 0:00:43]} 30. Rxb7 {[%emt 0:00:32]} Rxb7 {[%emt 0:01:48]} 31. Qxb7 {[%emt 0:00:02]} Rb6 {[%emt 0:00:16]} 32. Qa7 {[%emt 0:00:20]} Bb8 {[%emt 0:00:31]} 33. Qa5 {[%emt 0:01:00]} Bc7 {[%emt 0:00:21]} 34. Qa7 {[%emt 0:00:10]} Bb8 {[%emt 0:00:43]} 35. Qa5 {[%emt 0:00:03]} Bc7 {[%emt 0:00:55]} 36. Qa7 {[%emt 0:00:09]} Qc8 {[%emt 0:01:13]} 37. Ba5 {[%emt 0:01:29]} Rb7 {[%emt 0:00:05]} 38. Qa6 {[%emt 0:00:03]} Bxa5 {[%emt 0:00:07]} 39. Qxa5 {[%emt 0:00:03]} Rb5 {[%emt 0:00:33]} 40. Qa7 {[%emt 0:00:00]} Bd5 {[%emt 0:00:00]} 41. Bxd5+ {[%emt 0:05:32]} Rxd5 {[%emt 0:02:47]} 42. Re7 1/2-1/2

[Event "XXVII RUS-chT Premier 2020"]
[Site "Sochi"]
[Date "2020.11.19"]
[Round "1.8"]
[White "Alekseev, Evgeny"]
[Black "Bykov, Oleg"]
[Result "1-0"]
[ECO "B51"]
[WhiteElo "2615"]
[BlackElo "2362"]
[Annotator "ChessBase"]
[PlyCount "77"]
[EventDate "2020.11.19"]
[EventType "team-tourn"]
[EventCountry "RUS"]
[SourceTitle "playchess.com"]
[Source "ChessBase"]
[SourceQuality "1"]
[TimeControl "40/5400+30:1800+30"]

1. e4 {[%emt 0:00:00]} c5 {[%emt 0:00:00]} 2. Nf3 {[%emt 0:00:00]} d6 {[%emt 0:00:14]} 3. Bb5+ {[%emt 0:02:47]} Nd7 {[%emt 0:00:16]} 4. d4 {[%emt 0:00:57]} cxd4 {[%emt 0:00:14]} 5. Qxd4 {[%emt 0:00:37]} a6 {[%emt 0:01:25]} 6. Be2 {[%emt 0:05:17]} Ngf6 {[%emt 0:01:11]} 7. O-O {[%emt 0:06:12]} e6 {[%emt 0:10:33]} 8. c4 {[%emt 0:07:09]} Be7 {[%emt 0:01:11]} 9. Nc3 {[%emt 0:00:38]} O-O {[%emt 0:00:57]} 10. Rd1 {[%emt 0:10:59]} Qc7 {[%emt 0:04:14]} 11. b3 {[%emt 0:01:13]} b6 {[%emt 0:07:33]} 12. Ba3 {[%emt 0:04:19]} Nc5 {[%emt 0:07:41]} 13. e5 {[%emt 0:01:34]} dxe5 {[%emt 0:04:18]} 14. Qxe5 {[%emt 0:00:15]} Ra7 {[%emt 0:02:16]} 15. Bc1 {[%emt 0:09:23]} Bd7 {[%emt 0:08:50]} 16. Qxc7 {[%emt 0:05:23]} Rxc7 {[%emt 0:00:05]} 17. Ne5 {[%emt 0:10:48]} Rfc8 {[%emt 0:05:58]} 18. Bf4 {[%emt 0:06:22]} Be8 {[%emt 0:04:25]} 19. Bf3 {[%emt 0:00:18]} h6 {[%emt 0:15:32]} 20. h3 {[%emt 0:01:12]} g5 {[%emt 0:01:12]} 21. Bg3 {[%emt 0:02:01]} Ra7 {[%emt 0:01:29]} 22. Rab1 {[%emt 0:04:04]} Kg7 {[%emt 0:01:36]} 23. Rd2 {[%emt 0:04:06]} Ng8 {[%emt 0:04:15]} 24. b4 {[%emt 0:01:04]} Na4 {[%emt 0:02:45]} 25. Nxa4 {[%emt 0:00:37]} Bxa4 {[%emt 0:00:04]} 26. b5 {[%emt 0:00:20]} axb5 {[%emt 0:06:13]} 27. Nc6 {[%emt 0:00:44]} Rb7 {[%emt 0:00:35]} 28. cxb5 {[%emt 0:00:58]} Bc5 {[%emt 0:01:15]} 29. Be5+ {[%emt 0:01:50]} f6 {[%emt 0:00:36]} 30. Ba1 {[%emt 0:03:11]} Rbc7 {[%emt 0:01:40]} 31. Nd8 {[%emt 0:01:29]} Rxd8 {[%emt 0:06:20]} 32. Rxd8 {[%emt 0:00:15]} Ne7 {[%emt 0:00:07]} 33. Bd4 {[%emt 0:02:55]} Nc8 {[%emt 0:00:57]} 34. Bc6 {[%emt 0:01:16]} Bxd4 {[%emt 0:00:28]} 35. Rxd4 {[%emt 0:00:05]} Bc2 {[%emt 0:00:04]} 36. Rc1 {[%emt 0:00:19]} Bg6 {[%emt 0:00:13]} 37. Rd7+ {[%emt 0:00:05]} Rxd7 {[%emt 0:00:06]} 38. Bxd7 {[%emt 0:00:02]} Nd6 {[%emt 0:00:06]} 39. a4 {[%emt 0:01:07]} 1-0

[Event "XXVII RUS-chT Premier 2020"]
[Site "Sochi"]
[Date "2020.11.19"]
[Round "1.9"]
[White "Nozdrachev, Leonid"]
[Black "Kokarev, Dmitry"]
[Result "0-1"]
[ECO "E67"]
[WhiteElo "2391"]
[BlackElo "2621"]
[Annotator "ChessBase"]
[PlyCount "82"]
[EventDate "2020.11.19"]
[EventType "team-tourn"]
[EventCountry "RUS"]
[SourceTitle "playchess.com"]
[Source "ChessBase"]
[SourceQuality "1"]
[TimeControl "40/5400+30:1800+30"]

1. d4 {[%emt 0:00:00]} Nf6 {[%emt 0:00:00]} 2. c4 {[%emt 0:00:00]} g6 {[%emt 0:00:00]} 3. Nc3 {[%emt 0:00:00]} Bg7 {[%emt 0:00:00]} 4. Nf3 {[%emt 0:00:00]} O-O {[%emt 0:00:12]} 5. g3 {[%emt 0:00:10]} d6 {[%emt 0:02:17]} 6. Bg2 {[%emt 0:00:21]} Nbd7 {[%emt 0:00:06]} 7. O-O {[%emt 0:00:41]} e5 {[%emt 0:00:05]} 8. dxe5 {[%emt 0:01:36]} dxe5 {[%emt 0:00:14]} 9. Qd2 {[%emt 0:01:14]} Re8 {[%emt 0:01:46]} 10. e3 {[%emt 0:05:20]} Qe7 {[%emt 0:06:01]} 11. b3 {[%emt 0:03:18]} e4 {[%emt 0:02:15]} 12. Nd4 {[%emt 0:01:40]} Ne5 {[%emt 0:06:31]} 13. Qc2 {[%emt 0:08:00]} Nd3 {[%emt 0:10:37]} 14. Rb1 {[%emt 0:28:42]} c5 {[%emt 0:05:12]} 15. Ba3 {[%emt 0:01:55]} Qe5 {[%emt 0:00:38]} 16. Nde2 {[%emt 0:01:04]} Bf5 {[%emt 0:01:22]} 17. Bb2 {[%emt 0:05:13]} Nxb2 {[%emt 0:05:27]} 18. Qxb2 {[%emt 0:04:19]} Rad8 {[%emt 0:00:38]} 19. b4 {[%emt 0:06:49]} b6 {[%emt 0:07:18]} 20. Nb5 {[%emt 0:06:35]} Qxb2 {[%emt 0:04:42]} 21. Rxb2 {[%emt 0:00:02]} Nd5 {[%emt 0:00:56]} 22. Rbb1 {[%emt 0:04:44]} Nxb4 {[%emt 0:00:29]} 23. Nxa7 {[%emt 0:00:39]} Be6 {[%emt 0:02:46]} 24. a3 {[%emt 0:10:32]} Bxc4 {[%emt 0:00:27]} 25. axb4 {[%emt 0:03:18]} Bxe2 {[%emt 0:00:20]} 26. bxc5 {[%emt 0:02:26]} Bxf1 {[%emt 0:00:24]} 27. Bxf1 {[%emt 0:00:05]} bxc5 {[%emt 0:00:07]} 28. Rb7 {[%emt 0:01:02]} Rd1 {[%emt 0:03:33]} 29. Kg2 {[%emt 0:00:58]} Bf8 {[%emt 0:07:02]} 30. Nc6 {[%emt 0:01:16]} Re6 {[%emt 0:01:01]} 31. Na5 {[%emt 0:02:28]} Rd2 {[%emt 0:00:41]} 32. Nc4 {[%emt 0:00:54]} Rc2 {[%emt 0:01:34]} 33. Rd7 {[%emt 0:00:34]} Re7 {[%emt 0:06:18]} 34. Rd8 {[%emt 0:00:31]} Kg7 {[%emt 0:01:24]} 35. g4 {[%emt 0:00:27]} Re6 {[%emt 0:00:52]} 36. g5 {[%emt 0:00:35]} Be7 {[%emt 0:00:56]} 37. Rd5 {[%emt 0:00:05]} h6 {[%emt 0:00:29]} 38. h4 {[%emt 0:00:18]} hxg5 {[%emt 0:00:08]} 39. hxg5 {[%emt 0:00:02]} Kf8 {[%emt 0:01:18]} 40. Kg3 {[%emt 0:00:00]} Ra6 {[%emt 0:00:00]} 41. f3 {[%emt 0:15:08]} Ra1 {[%emt 0:03:38]} 0-1